{"text_format":"3","workbook":"xlsx","n_sheets":1,"sheets":["المقترح"],"not_rendered":{"images":1,"defined_names":20},"read":"whole","date_system":"1900"}

{"sheet":"المقترح","index":0,"n_rows":39,"n_cols":7,"rows_kept":39,"merged":[[0,1,3,1],[0,3,0,6],[1,4,1,6],[2,4,2,6],[32,3,35,4],[36,3,36,6],[37,3,37,5],[38,3,38,5]]}
[{"$nulls":3},"مقترح البناء"]
[{"$nulls":3},"اسم الشركة","| أدخل عنوان شارع الشركة في هذه الخلية"]
[{"$nulls":3},"رقم الهاتف","| أدخل رقم فاكس الشركة وعنوان البريد الإلكتروني لجهة الاتصال في هذه الخلية"]
[{"$nulls":3},"الكمية","الوصف","سعر الوحدة","المبلغ"]
[null,"العميل",null,10,"الصنف 1",{"v":165,"d":"ر.س.‏ 165.00"},{"$f":"IFERROR(عناصر_السطر[[#This Row],[الكمية]]*عناصر_السطر[[#This Row],[سعر الوحدة]], \"\")","v":{"v":1650,"d":"ر.س.‏ 1,650.00"}}]
[null,"أدخل \"اسم العميل\" في هذه الخلية",null,21,"عنصر 2",{"v":40,"d":"ر.س.‏ 40.00"},{"$f":"IFERROR(عناصر_السطر[[#This Row],[الكمية]]*عناصر_السطر[[#This Row],[سعر الوحدة]], \"\")","v":{"v":840,"d":"ر.س.‏ 840.00"}}]
[null,"الرقم التقديري",null,5,"عنصر 3",{"v":10.5,"d":"ر.س.‏ 10.50"},{"$f":"IFERROR(عناصر_السطر[[#This Row],[الكمية]]*عناصر_السطر[[#This Row],[سعر الوحدة]], \"\")","v":{"v":52.5,"d":"ر.س.‏ 52.50"}}]
[null,"C-1234",null,164,"عنصر 4",{"v":2.75,"d":"ر.س.‏ 2.75"},{"$f":"IFERROR(عناصر_السطر[[#This Row],[الكمية]]*عناصر_السطر[[#This Row],[سعر الوحدة]], \"\")","v":{"v":451,"d":"ر.س.‏ 451.00"}}]
[null,"التاريخ",null,6,"عنصر 5",{"v":12,"d":"ر.س.‏ 12.00"},{"$f":"IFERROR(عناصر_السطر[[#This Row],[الكمية]]*عناصر_السطر[[#This Row],[سعر الوحدة]], \"\")","v":{"v":72,"d":"ر.س.‏ 72.00"}}]
[null,{"$f":"TODAY()","v":"2018-11-19"},null,18,"عنصر 6",{"v":5.5,"d":"ر.س.‏ 5.50"},{"$f":"IFERROR(عناصر_السطر[[#This Row],[الكمية]]*عناصر_السطر[[#This Row],[سعر الوحدة]], \"\")","v":{"v":99,"d":"ر.س.‏ 99.00"}}]
[null,"العنوان",null,1,"عنصر 7",{"v":25,"d":"ر.س.‏ 25.00"},{"$f":"IFERROR(عناصر_السطر[[#This Row],[الكمية]]*عناصر_السطر[[#This Row],[سعر الوحدة]], \"\")","v":{"v":25,"d":"ر.س.‏ 25.00"}}]
[null,"أدخل \"عنوان شارع العميل\" في هذه الخلية",{"$nulls":4},{"$f":"IFERROR(عناصر_السطر[[#This Row],[الكمية]]*عناصر_السطر[[#This Row],[سعر الوحدة]], \"\")","v":{"v":0,"d":"ر.س.‏ 0.00"}}]
[null,"المدينة/المنطقة/الرمز البريدي",{"$nulls":4},{"$f":"IFERROR(عناصر_السطر[[#This Row],[الكمية]]*عناصر_السطر[[#This Row],[سعر الوحدة]], \"\")","v":{"v":0,"d":"ر.س.‏ 0.00"}}]
[null,"أدخل المدينة والمنطقة والرمز البريدي للعميل في هذه الخلية",{"$nulls":4},{"$f":"IFERROR(عناصر_السطر[[#This Row],[الكمية]]*عناصر_السطر[[#This Row],[سعر الوحدة]], \"\")","v":{"v":0,"d":"ر.س.‏ 0.00"}}]
[null,"الهاتف",{"$nulls":4},{"$f":"IFERROR(عناصر_السطر[[#This Row],[الكمية]]*عناصر_السطر[[#This Row],[سعر الوحدة]], \"\")","v":{"v":0,"d":"ر.س.‏ 0.00"}}]
[null,"أدخل \"رقم الهاتف العميل\" في هذه الخلية",{"$nulls":4},{"$f":"IFERROR(عناصر_السطر[[#This Row],[الكمية]]*عناصر_السطر[[#This Row],[سعر الوحدة]], \"\")","v":{"v":0,"d":"ر.س.‏ 0.00"}}]
[null,"البريد الإلكتروني",{"$nulls":4},{"$f":"IFERROR(عناصر_السطر[[#This Row],[الكمية]]*عناصر_السطر[[#This Row],[سعر الوحدة]], \"\")","v":{"v":0,"d":"ر.س.‏ 0.00"}}]
[null,"أدخل \"عنوان البريد الإلكتروني للعميل\" في هذه الخلية",{"$nulls":4},{"$f":"IFERROR(عناصر_السطر[[#This Row],[الكمية]]*عناصر_السطر[[#This Row],[سعر الوحدة]], \"\")","v":{"v":0,"d":"ر.س.‏ 0.00"}}]
[null,"البائع",{"$nulls":4},{"$f":"IFERROR(عناصر_السطر[[#This Row],[الكمية]]*عناصر_السطر[[#This Row],[سعر الوحدة]], \"\")","v":{"v":0,"d":"ر.س.‏ 0.00"}}]
[null,"أدخل \"البائع\" في هذه الخلية",{"$nulls":4},{"$f":"IFERROR(عناصر_السطر[[#This Row],[الكمية]]*عناصر_السطر[[#This Row],[سعر الوحدة]], \"\")","v":{"v":0,"d":"ر.س.‏ 0.00"}}]
[null,"المشروع",{"$nulls":4},{"$f":"IFERROR(عناصر_السطر[[#This Row],[الكمية]]*عناصر_السطر[[#This Row],[سعر الوحدة]], \"\")","v":{"v":0,"d":"ر.س.‏ 0.00"}}]
[null,"أدخل \"اسم المشروع\" في هذه الخلية",{"$nulls":4},{"$f":"IFERROR(عناصر_السطر[[#This Row],[الكمية]]*عناصر_السطر[[#This Row],[سعر الوحدة]], \"\")","v":{"v":0,"d":"ر.س.‏ 0.00"}}]
[null,"تم الإعداد من قِبل:",{"$nulls":4},{"$f":"IFERROR(عناصر_السطر[[#This Row],[الكمية]]*عناصر_السطر[[#This Row],[سعر الوحدة]], \"\")","v":{"v":0,"d":"ر.س.‏ 0.00"}}]
[null,"أدخل \"اسم المعد\" في هذه الخلية",{"$nulls":4},{"$f":"IFERROR(عناصر_السطر[[#This Row],[الكمية]]*عناصر_السطر[[#This Row],[سعر الوحدة]], \"\")","v":{"v":0,"d":"ر.س.‏ 0.00"}}]
[null,"انتباه",{"$nulls":4},{"$f":"IFERROR(عناصر_السطر[[#This Row],[الكمية]]*عناصر_السطر[[#This Row],[سعر الوحدة]], \"\")","v":{"v":0,"d":"ر.س.‏ 0.00"}}]
[null,"أدخل مقترح عنوان الاسم في هذه الخلية",{"$nulls":4},{"$f":"IFERROR(عناصر_السطر[[#This Row],[الكمية]]*عناصر_السطر[[#This Row],[سعر الوحدة]], \"\")","v":{"v":0,"d":"ر.س.‏ 0.00"}}]
[null,"شروط الدفع",{"$nulls":4},{"$f":"IFERROR(عناصر_السطر[[#This Row],[الكمية]]*عناصر_السطر[[#This Row],[سعر الوحدة]], \"\")","v":{"v":0,"d":"ر.س.‏ 0.00"}}]
[null,"30 صافي",{"$nulls":4},{"$f":"IFERROR(عناصر_السطر[[#This Row],[الكمية]]*عناصر_السطر[[#This Row],[سعر الوحدة]], \"\")","v":{"v":0,"d":"ر.س.‏ 0.00"}}]
[null,"تاريخ الاستحقاق",{"$nulls":4},{"$f":"IFERROR(عناصر_السطر[[#This Row],[الكمية]]*عناصر_السطر[[#This Row],[سعر الوحدة]], \"\")","v":{"v":0,"d":"ر.س.‏ 0.00"}}]
[null,{"$f":"TODAY()+30","v":"2018-12-19"},{"$nulls":4},{"$f":"IFERROR(عناصر_السطر[[#This Row],[الكمية]]*عناصر_السطر[[#This Row],[سعر الوحدة]], \"\")","v":{"v":0,"d":"ر.س.‏ 0.00"}}]
[{"$nulls":5},"الإجمالي الفرعي",{"$f":"SUBTOTAL(109,عناصر_السطر[المبلغ])","v":{"v":3189.5,"d":"ر.س.‏ 3,189.50"}}]
[{"$nulls":3},"يتضمن هذا الاقتراح الشروط الموضحة:",null,"معدل الضريبة ",{"v":0.0775,"d":"7.75%"}]
[{"$nulls":3},"أدخل الشروط هنا",null,"ضريبة المبيعات ",{"$f":"IFERROR(الإجمالي_الفرعي*نسبة_الضريبة, \"\")","v":{"v":247.18625,"d":"ر.س.‏ 247.19"}}]
[{"$nulls":5},"أخرى "]
[{"$nulls":5},"الإجمالي ",{"$f":"IFERROR(الإجمالي_الفرعي+G33+غير_ذلك, \"\")","v":{"v":3436.68625,"d":"ر.س.‏ 3,436.69"}}]
[]
[{"$nulls":3},"التوقيع أدناه لقبول عرض الأسعار:"]
[]
[{"$nulls":3},"الممثل المفوض",null,null,"تاريخ"]